[Event "CCT Final-RR 2024"]
[Site "Oslo"]
[Date "2024.12.17"]
[Round "3"]
[White "Nepomniachtchi, Ian"]
[Black "Vachier-Lagrave, Maxime"]
[Result "1/2-1/2"]
[ECO "B30"]
[WhiteElo "2755"]
[BlackElo "2731"]
[Annotator "TA"]
[PlyCount "105"]
[EventDate "2024.12.11"]
[EventType "tourn"]
[EventCountry "NOR"]
[SourceTitle "playchess.com"]
[Source "ChessBase"]
[SourceQuality "1"]
[TimeControl "600+2"]

{[%evp 10,105,20,27,30,41,27,29,21,9,22,14,16,17,22,0,0,4,13,4,27,0,0,0,0,0,0,9,22,0,0,0,0,0,0,0,7,0,0,0,0,0,0,0,0,0,0,0,0,0,0,-4,0,0,0,0,0,0,0,0,0,0,0,0,0,0,0,0,0,0,0,0,0,0,0,0,0,0,0,0,0,0,0,0,0,0,0,0,0,0,0,0,0,0,0,0,0,0]} 1. e4 {[%emt 0:00:02]} c5 {[%emt 0:00:01]} 2. Nf3 {[%emt 0:00:01]} Nc6 {[%emt 0:00:01]} 3. Bb5 {[%emt 0:00:07]} e6 {[%emt 0:00:02]} 4. O-O {[%emt 0:00:03]} Nge7 {[%emt 0:00:01]} 5. d4 {[%emt 0:00:11]} cxd4 {[%emt 0:00:02]} 6. Nxd4 {[%emt 0:00:01]} Ng6 {[%emt 0:00:01]} 7. Be3 {[%emt 0:00:06]} Be7 {[%emt 0:00:02]} 8. c3 {[%emt 0:00:03]} O-O {[%emt 0:00:03] White has an edge.} 9. Be2 {[%emt 0:00:08]} Nxd4 {[%emt 0:00:12]} 10. cxd4 {[%emt 0:00:03]} d5 {[%emt 0:00:01]} 11. e5 {[%emt 0:00:01]} f6 {[%emt 0:00:01]} 12. f4 {[%emt 0:00:08]} fxe5 {[%emt 0:00:32]} 13. fxe5 {[%emt 0:00:08]} Rxf1+ {[%emt 0:00:02]} 14. Bxf1 {[%emt 0:00:01]} Bg5 {[%emt 0:00:09]} 15. Qd2 {[%emt 0:00:05]} Bxe3+ {[%emt 0:00:06] The position is equal.} 16. Qxe3 {[%emt 0:00:01]} Bd7 {[%emt 0:00:03]} 17. Nd2 {[%emt 0:00:14]} Qb6 {[%emt 0:00:10]} 18. Nb3 {[%emt 0:00:26]} Rf8 {[%emt 0:00:10]} 19. Bd3 {[%emt 0:01:06]} Nf4 {[%emt 0:01:53]} 20. Rf1 {[%emt 0:00:04]} Nxd3 {[%emt 0:00:02]} 21. Rxf8+ {[%emt 0:00:02]} Kxf8 {[%emt 0:00:01]} 22. Qxd3 $11 {[%emt 0:00:01][%mdl 4096] Endgame. KQB-KQN} Qb4 {[%emt 0:00:10]} 23. h3 {[%emt 0:00:31]} (23. Qxh7 $2 Qe1#) 23... Kg8 {[%emt 0:00:40]} 24. Kh2 {[%emt 0:00:17]} b6 {[%emt 0:00:10]} 25. a3 {[%emt 0:00:53]} Qf8 {[%emt 0:00:04]} 26. Qe3 {[%emt 0:00:12]} h6 {[%emt 0:00:14]} 27. Nd2 {[%emt 0:00:12]} Qf5 {[%emt 0:00:01]} 28. Qc3 {[%emt 0:00:17]} Bb5 {[%emt 0:00:12]} 29. Kg1 {[%emt 0:00:16]} Bd3 {[%emt 0:01:11]} 30. a4 {[%emt 0:00:39]} (30. g4 $5 Qg6 $8 31. Kf2 $15) 30... Kh7 {[%emt 0:00:20]} 31. b4 {[%emt 0:00:01]} (31. g4 $5 Qg6 $8 32. Kf2 $17) 31... a6 {[%emt 0:00:31]} 32. a5 {[%emt 0:00:02]} (32. g4 $5 Qg6 $8 33. Kg2 $15) 32... bxa5 {[%emt 0:00:05]} 33. bxa5 {[%emt 0:00:01]} Bb5 {[%emt 0:00:12]} 34. Qe3 {[%emt 0:00:21]} Qc2 {[%emt 0:00:07]} 35. Nb3 {[%emt 0:00:04]} Bd3 {[%emt 0:00:41]} 36. Nc5 {[%emt 0:00:02]} Bf5 {[%emt 0:00:01]} ({Inferior is} 36... Be4 37. Qf2 Qc1+ 38. Kh2 $16) 37. Nxa6 {[%emt 0:00:22] [#] And now Nc5 would win.} Qa2 {[%emt 0:00:13]} ({Don't blunder} 37... Be4 $2 38. Qf2 Qc3 39. Nc5 Qxa5 40. Nxe6 Qa1+ 41. Kh2 $18) 38. Nc5 {[%emt 0:00:15]} Qxa5 {[%emt 0:00:03]} 39. g4 {[%emt 0:00:06]} Be4 {[%emt 0:00:08]} 40. Nxe4 {[%emt 0:00:21]} dxe4 {[%emt 0:00:01]} 41. Qxe4+ {[%emt 0:00:01] KQ-KQ} Kg8 {[%emt 0:00:01]} 42. Qe3 {[%emt 0:00:11]} Qa2 {[%emt 0:00:05]} 43. Qf2 {[%emt 0:00:03]} Qb1+ {[%emt 0:00:04]} 44. Kg2 {[%emt 0:00:05]} Qe4+ {[%emt 0:00:06]} 45. Kg3 {[%emt 0:00:02]} Qd3+ {[%emt 0:00:01]} 46. Kh2 {[%emt 0:00:01]} Qe4 {[%emt 0:00:37]} 47. Qd2 {[%emt 0:00:45]} Qf3 {[%emt 0:00:02]} 48. Qb2 {[%emt 0:00:27]} Qf4+ {[%emt 0:00:07]} 49. Kg2 {[%emt 0:00:01]} Qe4+ {[%emt 0:00:01]} 50. Kf2 {[%emt 0:00:01]} Qf4+ {[%emt 0:00:01]} 51. Kg2 {[%emt 0:00:02]} Qe4+ {[%emt 0:00:02]} 52. Kg1 {[%emt 0:00:01]} Qe3+ {[%emt 0:00:03]} 53. Kg2 {[%emt 0:00:03] Weighted Error Value: White=0.02 (flawless) /Black=0.01 (flawless) .  Inaccurate:     	White=1     	---        OK:         	White=20    	Black=26} 1/2-1/2

[Event "CCT Final-RR 2024"]
[Site "Oslo"]
[Date "2024.12.17"]
[Round "3"]
[White "Aronian, Levon"]
[Black "Keymer, Vincent"]
[Result "0-1"]
[ECO "C50"]
[WhiteElo "2747"]
[BlackElo "2733"]
[Annotator "TA"]
[PlyCount "189"]
[EventDate "2024.12.11"]
[EventType "tourn"]
[EventCountry "NOR"]
[SourceTitle "playchess.com"]
[Source "ChessBase"]
[SourceQuality "1"]
[TimeControl "600+2"]

{[%evp 143,189,-445,0,0,0,-6354,0,-2678,-281,-4700,0,-29983,0,0,0,0,0,0,0,0,0,0,0,-229,0,-29978,-29979,-29979,-29980,-29980,0,-29978,0,0,0,0,0,0,0,0,0,0,0,-29981,-29982,-29982,-29983,-29989]} 1. e4 {[%emt 0:00:02]} e5 {[%emt 0:00:01]} 2. Nf3 {[%emt 0:00:02]} Nc6 {[%emt 0:00:01]} 3. Bc4 {[%emt 0:00:01]} Nf6 {[%emt 0:00:02]} 4. d3 {[%emt 0:00:02]} Bc5 {[%emt 0:00:02]} 5. Nc3 {[%emt 0:00:01]} h6 {[%emt 0:00:06]} 6. Be3 {[%emt 0:00:28]} Bb6 {[%emt 0:00:10]} 7. Nd5 {[%emt 0:00:22]} d6 {[%emt 0:00:05]} 8. Nxb6 {[%emt 0:00:10]} axb6 {[%emt 0:00:02]} 9. a3 {[%emt 0:00:01]} O-O {[%emt 0:00:09]} 10. O-O {[%emt 0:00:09]} Re8 {[%emt 0:00:01]} 11. Re1 {[%emt 0:00:40]} Be6 {[%emt 0:00:25]} 12. Bb5 {[%emt 0:00:20]} Bd7 {[%emt 0:00:01]} 13. Bd2 {[%emt 0:01:05]} Ne7 {[%emt 0:00:06]} 14. Bxd7 {[%emt 0:00:02]} Qxd7 {[%emt 0:00:01]} 15. d4 {[%emt 0:00:12]} exd4 {[%emt 0:00:36]} 16. Nxd4 {[%emt 0:00:02]} c5 {[%emt 0:00:45]} 17. Nb3 {[%emt 0:00:58]} Ng6 {[%emt 0:00:43]} 18. f3 {[%emt 0:00:03]} d5 {[%emt 0:00:02]} 19. Bc3 {[%emt 0:00:06]} d4 {[%emt 0:00:37]} 20. Bd2 {[%emt 0:00:01]} Qb5 {[%emt 0:00:50]} 21. Qe2 {[%emt 0:00:16]} Qa4 {[%emt 0:00:01]} 22. Qf2 {[%emt 0:00:55]} Ne5 {[%emt 0:00:24]} 23. Bf4 {[%emt 0:00:25]} Ng6 {[%emt 0:01:08]} 24. Bg3 {[%emt 0:00:12]} Nh5 {[%emt 0:00:29]} 25. Rac1 {[%emt 0:00:01]} d3 {[%emt 0:00:52]} 26. Rcd1 {[%emt 0:00:56]} Ngf4 {[%emt 0:00:49]} 27. Nc1 {[%emt 0:01:01]} dxc2 {[%emt 0:00:25]} 28. Rd2 {[%emt 0:00:00]} Rad8 {[%emt 0:00:08]} 29. Rxc2 {[%emt 0:00:02]} Rd7 {[%emt 0:00:11]} 30. Rd2 {[%emt 0:00:39]} Red8 {[%emt 0:00:02]} 31. Rxd7 {[%emt 0:00:13]} Rxd7 {[%emt 0:00:01]} 32. Bxf4 {[%emt 0:00:14]} Nxf4 {[%emt 0:00:02]} 33. Qe3 {[%emt 0:00:01]} Rd1 {[%emt 0:01:02]} 34. g3 {[%emt 0:00:22]} Ne6 {[%emt 0:00:02]} 35. Kf2 {[%emt 0:00:44]} Qc2+ {[%emt 0:00:21]} 36. Ne2 {[%emt 0:00:01]} Rxe1 {[%emt 0:00:18]} 37. Kxe1 {[%emt 0:00:01]} Qxb2 {[%emt 0:00:01]} 38. f4 {[%emt 0:00:00]} Nd4 {[%emt 0:00:07]} 39. Nxd4 {[%emt 0:00:12]} cxd4 {[%emt 0:00:01]} 40. Qd3 {[%emt 0:00:01]} Qxh2 {[%emt 0:00:03]} 41. e5 {[%emt 0:00:14]} Qb2 {[%emt 0:00:04]} 42. Kd1 {[%emt 0:00:03]} b5 {[%emt 0:00:05]} 43. Qf5 {[%emt 0:00:04]} Qb3+ {[%emt 0:00:03]} 44. Kd2 {[%emt 0:00:01]} Qc3+ {[%emt 0:00:01]} 45. Ke2 {[%emt 0:00:00]} Qc4+ {[%emt 0:00:02]} 46. Kd2 {[%emt 0:00:01]} Qc3+ {[%emt 0:00:02]} 47. Ke2 {[%emt 0:00:00]} g6 {[%emt 0:00:01]} 48. Qd7 {[%emt 0:00:02]} Qxa3 {[%emt 0:00:02]} 49. Qxd4 {[%emt 0:00:04]} Qa2+ {[%emt 0:00:01]} 50. Ke1 {[%emt 0:00:06]} Qc4 {[%emt 0:00:03]} 51. Qd8+ {[%emt 0:00:01]} Kh7 {[%emt 0:00:01]} 52. Qe7 {[%emt 0:00:03]} b6 {[%emt 0:00:01]} 53. f5 {[%emt 0:00:03]} gxf5 {[%emt 0:00:02]} 54. Qd7 {[%emt 0:00:00]} Qe6 {[%emt 0:00:07]} 55. Qxb5 {[%emt 0:00:01]} f6 {[%emt 0:00:00]} 56. Kf2 {[%emt 0:00:05]} fxe5 {[%emt 0:00:02]} 57. Qd3 {[%emt 0:00:01]} Kg7 {[%emt 0:00:01]} 58. Qd8 {[%emt 0:00:02]} Qf6 {[%emt 0:00:03]} 59. Qd7+ {[%emt 0:00:02]} Qf7 {[%emt 0:00:02]} 60. Qd6 {[%emt 0:00:00]} e4 {[%emt 0:00:02]} 61. Qxb6 {[%emt 0:00:02]} Qe7 {[%emt 0:00:02]} 62. Qc6 {[%emt 0:00:03]} h5 {[%emt 0:00:01]} 63. Qc8 {[%emt 0:00:03]} Qf6 {[%emt 0:00:01]} 64. Qc7+ {[%emt 0:00:02]} Kg6 {[%emt 0:00:02]} 65. Qf4 {[%emt 0:00:02]} Qd4+ {[%emt 0:00:02]} 66. Kg2 {[%emt 0:00:01]} Qb2+ {[%emt 0:00:03]} 67. Kh3 {[%emt 0:00:01]} Qf6 {[%emt 0:00:02]} 68. Qb8 {[%emt 0:00:03]} Qe6 {[%emt 0:00:01]} 69. Kg2 {[%emt 0:00:03]} e3 {[%emt 0:00:04]} 70. Kf1 {[%emt 0:00:02]} Qc4+ {[%emt 0:00:00]} 71. Kg1 {[%emt 0:00:02]} Qc1+ {[%emt 0:00:03]} 72. Kg2 {[%emt 0:00:03]} Qc6+ $2 {[%emt 0:00:01]} (72... Qc2+ $1 $19 73. Kg1 Qe4 74. Qg8+ Kf6 75. Qh8+ Ke6 76. Qxh5 Qb1+ 77. Kh2 Qc2+ 78. Kg1 Kd5 79. Qf3+ Qe4) 73. Kg1 $11 {[%emt 0:00:02]} Qe6 $2 {[%emt 0:00:04][%mdl 8192]} (73... f4 $11 74. Qxf4 Qc1+ 75. Kg2 Qd2+ 76. Kg1 Qd1+ 77. Kg2 Qe2+ 78. Kg1 Qd1+) 74. Kf1 $1 $19 {[%emt 0:00:01]} Qc4+ $2 {[%emt 0:00:02]} (74... h4 $19 {( -> ...h3)} 75. gxh4 Qc4+ 76. Kg2 Qg4+ (76... Qxh4 77. Qe8+ Kg7 78. Qxe3 $11) (76... Qe2+ $2 77. Kh1 $19) 77. Kh2 e2 (77... Qxh4+ $2 78. Kg2 $19) 78. Qe8+ Kf6 79. Qc6+ Ke5) 75. Kg2 $2 {[%emt 0:00:02][%mdl 8192]} (75. Kg1 $11) 75... Qc2+ $2 {[%emt 0:00:02]} (75... Qe4+ 76. Kf1 Qc4+) 76. Kh3 $2 {[%emt 0:00:01]} (76. Kg1 Qe4 77. Qg8+ Kf6 78. Qh8+ Ke6 79. Qxh5) 76... Qc6 $2 {[%emt 0:00:02]} ({Black should play} 76... Qe4 $19 {[%cal Re4h1]} 77. Qg8+ Kf6 78. Qd8+ Ke6 79. Qb6+ Kf7 80. Qc7+ Qe7 81. Qc4+ Qe6) 77. Kh2 $2 {[%emt 0:00:03][%mdl 8192] [#]} (77. Qg8+ $11 Kf6 78. Qh8+ Ke7 (78... Ke6 79. Qh6+ Kd7 80. Qg7+ Kd6 81. Qh6+ Kc7 82. Qf4+ Kb7 83. Qb4+ Kc8 84. Qf8+ Kc7 85. Qe7+ Kb8 86. Qe5+ Kb7 87. Qb2+ Kc8 88. Qh8+ Kb7 89. Qb2+ Kc8 90. Qh8+ Kc7 91. Qe5+ Kd8 92. Qd4+ Kc7 93. Qe5+ Kd7 94. Qd4+ Ke8 95. Qe5+ Kd7 96. Qd4+ Kc8 97. Qh8+ $11) 79. Qg7+ Ke6 80. Qh6+ Kd7 81. Qg7+ Ke8 82. Qg8+ (82. Qe5+ Kd7 $11) 82... Kd7 83. Qh7+ Kd6 (83... Kd8 84. Qh8+ Ke7 85. Qg7+ Kd6 86. Qh6+ Kc7 87. Qf4+ Kb7 88. Qb4+ Kc7 89. Qe7+ Kc8 90. Qf8+ Kd7 91. Qg7+ Kd6 92. Qh6+ Kd7 93. Qg7+ $11) 84. Qh6+ Kd7) 77... h4 $2 {[%emt 0:00:01]} (77... Qe6 $1 78. Qb4 e2 79. Qe1 Qe4 80. Kg1 Qd4+ 81. Kg2 Qe3 82. Kh1 h4 83. gxh4 Kh5 (83... f4 84. Kh2 Kh6 85. Qa5 Qg3+ 86. Kh1 e1=Q+ 87. Qxe1 Qxe1+ 88. Kg2 Qe2+ 89. Kh3 Kg7 90. h5 Kh6 91. Kh4 Qxh5#) 84. Kg2 Kg4 85. Qb4+ f4 86. Qe1 Qh3+ (86... f3+ 87. Kh2 Qe5+ 88. Kg1 Qg3+ 89. Qxg3+ Kxg3 90. h5 e1=Q#) (86... Qg3+ 87. Qxg3+ fxg3 88. h5 e1=Q 89. h6 Qf2+ 90. Kh1 Qh2#) 87. Kg1 Qg3+ (87... Qxh4 88. Qxe2+ f3 89. Qe6+ Kg3 90. Qg8+ Kh3 91. Qe6+ Qg4+ 92. Qxg4+ Kxg4 93. Kf2 $11) 88. Kh1 Qxe1+ 89. Kh2 Qg3+ 90. Kh1 e1=Q#) 78. Qg8+ $1 $11 {[%emt 0:00:01]} Kf6 {[%emt 0:00:02]} 79. Qh8+ {[%emt 0:00:02]} Ke7 {[%emt 0:00:03]} (79... Ke6 $5 80. Qh6+ $8 Kd5 81. Qxe3 Qc2+ 82. Kh3 Qe4 83. Qxe4+ fxe4 84. gxh4 e3 $11) 80. Qxh4+ {[%emt 0:00:02]} Qf6 {[%emt 0:00:03]} 81. Qb4+ {[%emt 0:00:02]} Qd6 {[%emt 0:00:02]} 82. Qh4+ {[%emt 0:00:02]} Kd7 {[%emt 0:00:01]} 83. Qg5 $2 {[%emt 0:00:03]} (83. Qa4+ $11 Ke7 84. Qa7+ Ke8 85. Qxe3+ Kf7 86. Qc3) 83... e2 $2 {[%emt 0:00:02]} (83... Qd2+ $1 $19 84. Kh3 Qd3 85. Qg7+ Ke6) 84. Qg7+ $2 {[%emt 0:00:03][%mdl 8192]} (84. Qxf5+ $11 Qe6 85. Qh7+ Kd6 86. Qd3+ Ke7 87. Qh7+ Kd8 88. Qh8+ Kc7 89. Qc3+ Kb6 90. Qb4+ Kc6 91. Qc3+ Kd5 92. Qd3+ Kc6 93. Qc3+) 84... Qe7 {[%emt 0:00:01]} 85. Qd4+ {[%emt 0:00:00] [#]} Ke8 $1 {[%emt 0:00:03]} 86. Qh8+ {[%emt 0:00:02]} Kd7 {[%emt 0:00:01]} 87. Qd4+ {[%emt 0:00:01] [#]} Qd6 $2 {[%emt 0:00:02]} (87... Ke6 $1 {mates} 88. Qc4+ Kf6 89. Qh4+ Kf7 90. Qh7+ Ke6 91. Qh6+ Kd7 92. Qd2+ Ke8 93. Qe1 Kf7 94. Kh1 Qe3 95. Kg2 Kg6 96. g4 f4 (96... fxg4 $2 97. Kh2 $19) 97. Qb1+ Kh6 98. Qh1+ Kg7 99. Qe1 f3+ 100. Kh2 f2 101. Qa1+ Kf7 102. Qa2+ Ke7 103. Qa7+ Qxa7 104. Kg3 e1=Q (104... e1=B {gets mated.} 105. Kh4 f1=Q+ 106. Kh5 Qf7+ 107. Kh6 Qe3+ 108. g5 Qh3#) 105. g5 f1=Q+ (105... f1=R+ 106. Kg4 Qe4+ 107. Kh3 Qh7+ 108. Kg4 Qg1#) 106. Kg4 Qe6+ 107. Kh5 Qfh3#) 88. Qg7+ $11 {[%emt 0:00:02]} Kc6 {[%emt 0:00:02]} 89. Qc3+ {[%emt 0:00:03]} Kd7 {[%emt 0:00:04]} 90. Qg7+ {[%emt 0:00:01]} Kc8 {[%emt 0:00:01]} (90... Ke6 $5 91. Qh6+ $8 Kd7 $11) 91. Qh8+ {[%emt 0:00:03]} Qd8 {[%emt 0:00:02]} 92. Qc3+ $1 {[%emt 0:00:03]} Qc7 {[%emt 0:00:01]} 93. Qe1 $2 {[%emt 0:00:03][%mdl 8192]} (93. Qh8+ $11 Qd8 94. Qc3+ (94. Qe5 Qd2 $11) 94... Qc7 95. Qh8+) 93... Qe5 {[%emt 0:00:02]} 94. Kg2 {[%emt 0:00:04]} Qe3 {[%emt 0:00:02]} 95. Kh3 0-1

[Event "CCT Final-RR 2024"]
[Site "Oslo"]
[Date "2024.12.17"]
[Round "3"]
[White "So, Wesley"]
[Black "Carlsen, Magnus"]
[Result "0-1"]
[ECO "E32"]
[WhiteElo "2747"]
[BlackElo "2831"]
[Annotator "TA"]
[PlyCount "92"]
[EventDate "2024.12.11"]
[EventType "tourn"]
[EventCountry "NOR"]
[SourceTitle "playchess.com"]
[Source "ChessBase"]
[SourceQuality "1"]
[TimeControl "600+2"]

{[%evp 45,92,208,197,210,200,178,162,151,141,145,154,159,161,145,169,61,79,68,110,121,122,116,161,47,111,17,58,58,58,53,54,54,56,51,80,0,0,0,0,-290,-248,-12637,-12637,-29978,-29979,-29994,-29995,-29998,-29999]} 1. d4 {[%emt 0:00:11]} Nf6 {[%emt 0:00:13]} 2. c4 {[%emt 0:00:02]} e6 {[%emt 0:00:18]} 3. Nc3 {[%emt 0:00:04]} Bb4 {[%emt 0:00:01]} 4. Qc2 {[%emt 0:00:19]} d6 {[%emt 0:00:14]} 5. Nf3 {[%emt 0:01:09]} Nbd7 {[%emt 0:00:04]} 6. e3 {[%emt 0:00:24]} b6 {[%emt 0:00:39]} 7. Be2 {[%emt 0:00:25]} Bb7 {[%emt 0:00:03]} 8. O-O {[%emt 0:00:03]} Bxc3 {[%emt 0:00:02]} 9. Qxc3 {[%emt 0:00:01]} Ne4 {[%emt 0:00:02]} 10. Qc2 {[%emt 0:00:03]} f5 {[%emt 0:00:02]} 11. d5 {[%emt 0:00:21]} exd5 {[%emt 0:02:19]} 12. Nd4 {[%emt 0:00:12]} dxc4 {[%emt 0:03:04]} 13. Ne6 {[%emt 0:00:53]} Qc8 {[%emt 0:00:01]} 14. f3 {[%emt 0:01:10]} Ke7 {[%emt 0:00:38]} 15. Nxg7 {[%emt 0:00:24]} Qf8 {[%emt 0:00:01]} 16. Nh5 {[%emt 0:00:13]} Nec5 {[%emt 0:00:31]} 17. Qxc4 {[%emt 0:00:15]} Ne5 {[%emt 0:00:14]} 18. Qh4+ {[%emt 0:00:08]} Kd7 {[%emt 0:00:01]} 19. b4 {[%emt 0:00:08]} Ne6 {[%emt 0:00:01]} 20. Bb2 {[%emt 0:00:06]} Qe7 {[%emt 0:00:29]} 21. Qxe7+ {[%emt 0:00:17]} Kxe7 {[%emt 0:00:01]} 22. f4 {[%emt 0:00:02]} Rhg8 {[%emt 0:00:01]} 23. Ng3 {[%emt 0:00:02]} (23. fxe5 $2 Rxg2+ 24. Kh1 Rxe2+ 25. e4 Bxe4+ $19 (25... Rxb2 $2 26. exd6+ cxd6 27. Ng3 $19)) 23... Rxg3 {[%emt 0:00:01]} 24. hxg3 {[%emt 0:00:02]} Ng4 {[%emt 0:00:02]} 25. Bxg4 {[%emt 0:00:41]} fxg4 {[%emt 0:00:02]} 26. f5 {[%emt 0:00:03]} Ng5 {[%emt 0:00:01]} 27. b5 {[%emt 0:00:10]} a6 {[%emt 0:00:05]} 28. a4 {[%emt 0:00:29]} Ne4 {[%emt 0:00:01]} 29. a5 {[%emt 0:00:40]} Nxg3 {[%emt 0:00:08]} 30. Rfe1 {[%emt 0:00:18]} ({White should play} 30. f6+ $18 Kf7 31. Rfd1 bxa5 (31... axb5 $2 32. axb6 cxb6 33. Rxa8 $18) 32. b6 (32. Rxa5 axb5 33. Rxa8 Bxa8 $18)) 30... bxa5 $1 $14 {[%emt 0:00:32]} 31. f6+ {[%emt 0:00:08]} Ke6 {[%emt 0:00:11]} 32. Rxa5 {[%emt 0:00:06]} axb5 {[%emt 0:00:01]} 33. Rxb5 {[%emt 0:00:30]} (33. Rxa8 $6 Bxa8 34. Ra1 Bd5 $11) 33... Be4 {[%emt 0:00:07] [#]} 34. Ra1 {[%emt 0:00:12]} (34. Kh2 $1 $18 {[%cal Rh2g3]} Nf5 35. Rb4) 34... Rc8 {[%emt 0:00:09]} (34... Rxa1+ $14 35. Bxa1 Bg6) 35. Rg5 {[%emt 0:00:30]} (35. Kh2 $16 Nf5 36. Rb4) 35... h5 {[%emt 0:00:07]} (35... Rb8 {simplifies} 36. Rxg4 Rxb2 37. Rxg3 Kxf6 38. Rg4 Bg6) 36. Rg7 {[%emt 0:00:14]} Nf5 {[%emt 0:00:04]} 37. Rh7 {[%emt 0:00:01]} Rb8 {[%emt 0:00:04]} 38. Bc3 $1 {[%emt 0:00:01]} c5 $1 {[%emt 0:00:05]} 39. Kh2 {[%emt 0:00:03]} (39. Rxh5 $2 Ng3 40. Rh6 Ne2+ 41. Kh2 g3+ (41... Nxc3 42. f7+ Kxf7 43. Ra7+ Kg8 44. Kg3 $17) 42. Kh3 Nxc3 43. Kxg3 Rg8+ 44. Kf4 Bg6 $19 (44... Bxg2 45. f7+ Kxf7 46. Ra7+ Ke8 47. Re6+ Kd8 48. Rxd6+ Kc8 49. Ra5 $15)) 39... h4 {[%emt 0:00:07] [#]} 40. Raa7 {[%emt 0:00:07]} (40. Ra4 $1 $16 {[%cal Ra4e4]} c4 41. f7 (41. Rxc4 g3+ 42. Kh3 Bxg2+ 43. Kxg2 Nxe3+ 44. Kh3 g2 $11)) 40... h3 $1 $11 {[%emt 0:00:15]} 41. Rhe7+ {[%emt 0:00:06]} (41. gxh3 $2 g3+ (41... Nxe3 $2 42. Rae7+ Kf5 43. f7 $18) 42. Kg1 Rb1+) (41. Ra4 Bxg2 42. Rxg4 Rb1 (42... Nxe3 43. Re7+ Kf5 44. Rxg2 $18) 43. Rxh3 Bxh3 44. Re4+ Kf7 (44... Kd5 45. f7 $11) 45. Kxh3 Rc1) 41... Kd5 {[%emt 0:00:06]} (41... Nxe7 42. Rxe7+ Kd5 (42... Kf5 $2 43. f7 $18) 43. gxh3 $16) 42. f7 $2 {[%emt 0:00:01][%mdl 8192]} (42. Reb7 $1 $11 Rf8 (42... Rxb7 $2 43. Rxb7 Kc4 44. f7 $18) 43. gxh3 g3+ (43... Kc4 44. Ra4+ Kd3 45. Rb3 $16) 44. Kg1) 42... Nxe7 $19 {[%emt 0:00:08]} (42... Nxe3 $2 43. Re8 (43. gxh3 Nf1+ 44. Kg1 gxh3 $18) 43... Rb1 44. Ra1 $18 (44. f8=B Nf1+ 45. Kg1 g3) (44. gxh3 Rh1+ 45. Kg3 Rxh3+ 46. Kf2 Nc4 $18)) 43. Rxe7 $2 {[%emt 0:00:01]} (43. Rb7 Rf8 (43... Rxb7 44. f8=Q $15) (43... g3+ 44. Kxh3 Rxb7 45. f8=Q $11) 44. Rxe7) 43... hxg2 $19 {[%emt 0:00:01]} 44. Rxe4 {[%emt 0:00:09]} Kxe4 {[%emt 0:00:02]} ({And not} 44... g1=Q+ 45. Kxg1 Kxe4 46. Bg7 $11) 45. Bg7 {[%emt 0:00:01]} Kf3 {[%emt 0:00:01]} 46. Kg1 {[%emt 0:00:03]} Rb1+ {[%emt 0:00:02]} 0-1